Workbook

Sheet TABELA
B1: TERMINARZ AMATORSKIEJ LIGI BOWLINGOWEJ
B3: Data | C3: Godzina | D3: Gospodarz | E3: Gość | F3: Punkty | I3: Pins
B4: RUNDA PODSTAWOWA
B5: 1 KOLEJKA
B6: 02.02.2012 | C6: 19.00 | D6: PZU II | E6: TRZYSTU | F6: 0 | G6: : | H6: 2 | I6: 1132 | J6: : | K6: 1535
B7: 02.02.2012 | C7: 17:30:00 | D7: PZU I | E7: MAZURG | F7: 2 | G7: : | H7: 0 | I7: 1500 | J7: : | K7: 1404
B8: 02.02.2012 | C8: 17:30:00 | D8: TP SA II | E8: WARMIG II | F8: 0 | G8: : | H8: 2 | I8: 1571 | J8: : | K8: 1667
B9: 2 KOLEJKA
B10: 16.02.3012 | C10: 19.00 | D10: WARMIG II | E10: TRZYSTU | F10: 0 | G10: : | H10: 2 | I10: 1433 | J10: : | K10: 1538
B11: 12.03.2012 | C11: 17:30:00 | D11: MAZURG | E11: TP SA II | F11: 0 | G11: : | H11: 2 | I11: 1528 | J11: : | K11: 1555
B12: 16.02.2012 | C12: 17:30:00 | D12: PZU II | E12: PZU I | F12: 0 | G12: : | H12: 2 | I12: 1032 | J12: : | K12: 1580
B13: 3 KOLEJKA
B14: 01.03.2012 | C14: 19.00 | D14: PZU I | E14: TRZYSTU | F14: 0 | G14: : | H14: 2 | I14: 1621 | J14: : | K14: 1740
B15: 01.03.2012 | C15: 17:30:00 | D15: TP SA II | E15: PZU II | F15: 2 | G15: : | H15: 0 | I15: 1598 | J15: : | K15: 1171
B16: 01.03.2012 | C16: 17:30:00 | D16: WARMIG II | E16: MAZURG | F16: 2 | G16: : | H16: 0 | I16: 1617 | J16: : | K16: 1578
B17: 4 KOLEJKA
B18: 15.03.2012 | C18: 19.00 | D18: MAZURG | E18: TRZYSTU | F18: 0 | G18: : | H18: 2 | I18: 1485 | J18: : | K18: 1643
B19: 16.04.2012 | D19: PZU II | E19: WARMIG II | F19: 2 | G19: : | H19: 0 | I19: 1445 | J19: : | K19: 1065
B20: 15.03.2012 | C20: 17:30:00 | D20: PZU I | E20: TP SA II | F20: 2 | G20: : | H20: 0 | I20: 1648 | J20: : | K20: 1637
B21: 5 KOLEJKA
B22: 29.03.2012 | C22: 19.00 | D22: TP SA II | E22: TRZYSTU | F22: 2 | H22: 0 | I22: 1591 | K22: 1510
B23: 29.03.2012 | C23: 17:30:00 | D23: WARMIG II | E23: PZU I | F23: 2 | H23: 0 | I23: 1765 | K23: 1638
B24: 29.03.2012 | C24: 17:30:00 | D24: MAZURG | E24: PZU II | F24: 2 | H24: 0 | I24: 1491 | K24: 1255
C27: TABELA
C28: 1 | D28: TRZYSTU | F28: 8 | G28: : | H28: 2 | I28: 7966 | J28: : | K28: 7262
C29: 2 | D29: PZU I | F29: 6 | H29: 4 | I29: 7987 | K29: 7578
C30: 3 | D30: TP SA II | F30: 6 | H30: 4 | I30: 7952 | K30: 7524
C31: 4 | D31: WARMIG II | F31: 6 | H31: 4 | I31: =SUM(K8+I10+I16+K19+I23) -> 7547 | K31: =SUM(I8+K10+K16+I19+K23) -> 7770
C32: 5 | D32: MAZURG | F32: 2 | H32: 8 | I32: =SUM(K7+I11+K16+I18+I24) -> 7486 | K32: =SUM(K24+K18+I16+K11+I7) -> 7570
C33: 6 | D33: PZU II | F33: 2 | H33: 8 | I33: =SUM(I6+I12+K15+I19+K24) -> 6035 | K33: =SUM(K6+K12+I15+K19+I24) -> 7269
B36: Data | C36: Godzina | D36: Gospodarz | E36: Gość | F36: Punkty | I36: Pins
B37: RUNDA REWANZOWA
B38: 6 KOLEJKA
C39: 19.30 | D39: TRZYSTU | E39: PZU II | F39: 07.05.2012 GODZ. 19.30
B40: 12.04.2012 | C40: 18:00:00 | D40: MAZURG | E40: PZU I | F40: 0 | G40: : | H40: 2 | I40: 1518 | J40: : | K40: 1699
C41: 18:00:00 | D41: WARMIG II | E41: TP SA II | F41: DO USTALENIA
B42: 7 KOLEJKA
B43: 26.04.2012 | C43: 19.30 | D43: TRZYSTU | E43: WARMIG II | F43: 2 | G43: : | H43: 0 | I43: 1747 | J43: : | K43: 1736
B44: 26.04.2012 | C44: 18:00:00 | D44: TP SA II | E44: MAZURG | F44: 2 | G44: : | H44: 0 | I44: 1885 | J44: : | K44: 1586
B45: 26.04.2012 | C45: 18:00:00 | D45: PZU I | E45: PZU II | F45: 2 | G45: : | H45: 0 | I45: 1684 | J45: : | K45: 1357
B46: 8 KOLEJKA
B47: 10.05.2012 | C47: 19.30 | D47: TRZYSTU | E47: PZU I | G47: : | J47: :
B48: 10.05.2012 | C48: 18:00:00 | D48: PZU II | E48: TP SA II | F48: 0 | G48: : | H48: 2 | I48: 1269 | J48: : | K48: 1670
B49: 10.05.2012 | C49: 18:00:00 | D49: MAZURG | E49: WARMIG II | G49: : | J49: :
B50: 9 KOLEJKA
B51: 17.05.2012 | C51: 19.30 | D51: TRZYSTU | E51: MAZURG | G51: : | J51: :
B52: 17.05.2012 | C52: 18:00:00 | D52: WARMIG II | E52: PZU II | G52: : | J52: :
B53: 17.05.2012 | C53: 18:00:00 | D53: TP SA II | E53: PZU I | G53: : | J53: :
B54: 10 KOLEJKA
B55: 24.05.2012 | C55: 19.30 | D55: TRZYSTU | E55: TP SA II
B56: 24.05.2012 | C56: 18:00:00 | D56: PZU I | E56: WARMIG II
B57: 24.05.2012 | C57: 18:00:00 | D57: PZU II | E57: MAZURG
C59: TABELA
C60: 1 | D60: TRZYSTU | F60: 8 | G60: : | H60: 2 | I60: 7966 | J60: : | K60: 7262
C61: 2 | D61: PZU I | F61: 10 | H61: 4 | I61: =SUM(I29+K40+I45) -> 11370 | K61: =SUM(K29+I40+K45) -> 10453
C62: 3 | D62: TP SA II | F62: 10 | H62: 4 | I62: =SUM(K48+I30) -> 9622 | K62: =SUM(I48+K30) -> 8793
C63: 4 | D63: WARMIG II | F63: 6 | H63: 4 | I63: 7547 | K63: 7770
C64: 5 | D64: MAZURG | F64: 2 | H64: 12 | I64: =SUM(I32+I40+K44) -> 10590 | K64: =SUM(K32+K40+I44) -> 11154
C65: 6 | D65: PZU II | F65: 2 | H65: 12 | I65: =SUM(I33+K45+K48) -> 9062 | K65: =SUM(K33+K48+I45) -> 10623

Sheet INDY
B1: KLASYFIKACJA INDYWIDUALNA AMATORSKIEJ LIGI BOWLINGOWEJ PO VI i VII RUNDZIE | Q1: 12.04 | V1: 26.04 | AA1: 10.05
B2: miejsce | C2: nr licencji | D2: Nazwisko i Imię | E2: NAZWA DRUZYNY | F2: średnia | G2: ilość | H2: suma | I2: TOTALL | J2: hndc | K2: LICZBA PASKÓW >200 | P2: TOTALL | U2: TOTALL | Z2: TOTALL | AE2: TOTALL | AJ2: TOTALL | AO2: TOTALL
B3: MEN
B4: 1 | D4: ORZECHOWSKI ARTUR | E4: PZU I | F4: =SUM(I4/G4) -> 155.7058824 | G4: 17 | I4: =SUM(L4:AO4)+(J4) -> 2647 | K4: 1 | O4: 121 | P4: 1361 | R4: 165 | S4: 165 | T4: 163 | V4: 183 | W4: 143 | X4: 187 | Y4: 159
B5: 2 | D5: SZORC WOJCIECH | E5: TP SA II | F5: 149.962963 | G5: 27 | I5: =SUM(L5:AO5)+(J5) -> 4049 | K5: 2 | L5: 122 | M5: 129 | N5: 166 | P5: 2324 | V5: 145 | W5: 185 | X5: 140 | Y5: 216 | AA5: 162 | AB5: 153 | AC5: 167 | AD5: 140
B6: 3 | D6: ŹYGADŁO GRZEGORZ | E6: TRZYSTU | F6: 148.25 | G6: 24 | I6: 3558 | L6: 123 | M6: 108 | N6: 159 | O6: 168 | P6: 2409 | V6: 133 | W6: 146 | X6: 165 | Y6: 147
B7: 4 | D7: PASEMKO MAREK | E7: TP SA II | F7: 147.3125 | G7: 16 | I7: 2357 | K7: 1 | L7: 128 | M7: 203 | N7: 110 | O7: 178 | P7: 1069 | V7: 173 | W7: 168 | X7: 186 | Y7: 142
B8: 5 | D8: KRUTCZENKO ROBERT | E8: PZU I | F8: 142.4230769 | G8: 26 | I8: 3703 | L8: 125 | M8: 147 | N8: 143 | O8: 161 | P8: 1980 | Q8: 102 | R8: 184 | S8: 153 | T8: 178 | V8: 131 | W8: 165 | X8: 101 | Y8: 133
B9: 6 | D9: WUJTEWICZ JANUSZ | E9: MAZURG | F9: 140.9545455 | G9: 22 | I9: 3101 | L9: 161 | M9: 159 | O9: 156 | P9: 1853 | Q9: 124 | R9: 124 | T9: 111 | V9: 140 | W9: 124 | Y9: 149
B10: 7 | D10: LACHOWICZ JACEK | E10: WARMIG II | F10: 140.9411765 | G10: 17 | I10: 2396 | L10: 144 | M10: 128 | N10: 128 | P10: 831 | Q10: 135 | R10: 111 | S10: 145 | T10: 126 | V10: 168 | W10: 164 | X10: 163 | Y10: 153
B11: 8 | D11: PARDA KRZYSZTOF | E11: WARMIG II | F11: 138.8823529 | G11: 17 | I11: 2361 | M11: 176 | N11: 162 | O11: 147 | P11: 753 | Q11: 116 | R11: 135 | S11: 156 | T11: 141 | V11: 134 | W11: 169 | X11: 94 | Y11: 178
B12: 9 | D12: SALWOWSKI MAREK | E12: TP SA II | F12: 138 | G12: 12 | I12: 1656 | P12: 1071 | AA12: 169 | AB12: 173 | AC12: 112 | AD12: 131
B13: 10 | D13: ŁAKOMY TOMASZ | E13: PZU I | F13: 132 | G13: 13 | I13: 1716 | L13: 135 | M13: 147 | N13: 158 | O13: 114 | P13: 904 | Q13: 162 | R13: 96
B14: 11 | D14: KOZIKOWSKI PRZEMYSŁAW | E14: TRZYSTU | F14: 130.0833333 | G14: 24 | I14: 3122 | L14: 107 | M14: 106 | N14: 135 | O14: 152 | P14: 2029 | V14: 157 | W14: 178 | X14: 140 | Y14: 118
B15: 12 | D15: KRUSZEWSKI ROMAN | E15: MAZURG | F15: 129.8571429 | G15: 21 | I15: 2727 | M15: 135 | N15: 144 | O15: 137 | P15: 1503 | R15: 96 | S15: 126 | T15: 149 | W15: 121 | X15: 158 | Y15: 158
B16: 13 | D16: ZYGAS ANDRZEJ | E16: MAZURG | F16: 126.8095238 | G16: 21 | I16: 2663 | K16: 1 | L16: 97 | M16: 130 | N16: 113 | P16: 1589 | Q16: 104 | S16: 122 | T16: 141 | V16: 139 | X16: 109 | Y16: 119
B17: 14 | D17: ANACKI PIOTR | E17: TRZYSTU | F17: 126.375 | G17: 24 | I17: 3033 | L17: 116 | M17: 102 | N17: 137 | O17: 97 | P17: 2018 | V17: 126 | W17: 141 | X17: 131 | Y17: 165
B18: 15 | D18: CZAPLICKI SEBASTIAN | E18: WARMIG II | F18: 123.4166667 | G18: 12 | I18: 1481 | L18: 126 | N18: 120 | O18: 149 | P18: 573 | V18: 182 | W18: 104 | X18: 103 | Y18: 124
B19: 16 | D19: MARKOWSKI MAREK | E19: TP SA II | F19: 122.76 | G19: 25 | I19: 3069 | L19: 126 | O19: 141 | P19: 1809 | V19: 130 | W19: 153 | X19: 143 | Y19: 104 | AA19: 103 | AB19: 100 | AC19: 116 | AD19: 144
B20: 17 | D20: BANASZEWSKI JAREK | E20: PZU II | F20: 119.9230769 | G20: 13 | I20: 1559 | M20: 149 | N20: 111 | O20: 162 | P20: 421 | Q20: 170 | R20: 130 | S20: 109 | V20: 110 | W20: 125 | Y20: 72
B21: 18 | D21: WIZIECKI WOJCIECH | E21: WARMIG II | F21: 117.2 | G21: 5 | I21: 586 | P21: 586
B22: 19 | D22: TRĄBCZYŃSKI TOMASZ | E22: PZU I | F22: 117 | G22: 10 | I22: 1170 | L22: 113 | M22: 124 | N22: 150 | P22: 783
B23: 20 | D23: SNARSKI GRZEGORZ | E23: WARMIG II | F23: 112.3333333 | G23: 3 | I23: 337 | P23: 337
B24: 21 | D24: CERAŃSKI PIOTR | E24: PZU I | F24: 111 | G24: 11 | I24: 1221 | P24: 890 | Q24: 105 | S24: 104 | T24: 122
B25: 22 | D25: MAJEWSKI PIOTR | E25: TP SA II | F25: 96 | G25: 3 | I25: 288 | L25: 96 | M25: 96 | N25: 96
B26: 23 | D26: CHRZANOWSKI ADAM | E26: PZU II | F26: 86.8 | G26: 5 | I26: 434 | P26: 434
B27: 24 | D27: KOCON JACEK | E27: MAZURG | F27: 86.33333333 | G27: 3 | I27: 259 | L27: 84 | N27: 98 | O27: 77
B28: WOMEN
B29: 1 | D29: SCHMIDT AGNIESZKA | E29: WARMIG II | F29: =SUM(I29/G29) -> 165.8181818 | G29: 11 | I29: =SUM(L29:AO29)+(J29) -> 1824 | L29: 176 | M29: 144 | O29: 165 | P29: 1339
B30: 2 | D30: ZAJĄCZKOWSKA ANNA | E30: PZU II | F30: 125.7647059 | G30: 17 | I30: =SUM(L30:AO30)+(J30) -> 2138 | J30: 200 | L30: 112 | M30: 83 | O30: 91 | P30: 432 | Q30: 116 | R30: 132 | T30: 86 | V30: 130 | W30: 123 | X30: 126 | AA30: 121 | AB30: 146 | AC30: 130 | AD30: 110
B31: 3 | D31: KRUTCZENKO MAGDA | E31: PZU I | F31: 120.5 | G31: 4 | I31: =SUM(J31:AO31) -> 482 | J31: 80 | P31: 0 | V31: 102 | W31: 85 | X31: 108 | Y31: 107
B32: 4 | D32: KOCON ELŻBIETA | E32: MAZURG | F32: 112.9411765 | G32: 17 | I32: =SUM(L32:AO32)+(J32) -> 1920 | J32: 60 | P32: 1110 | Q32: 103 | R32: 155 | S32: 123 | V32: 132 | W32: 117 | X32: 120
B33: 5 | D33: LEWICKA ELŻBIETA | E33: PZU II | F33: 108.95 | G33: 20 | I33: =SUM(L33:AO33)+(J33) -> 2179 | J33: 200 | L33: 62 | O33: 81 | P33: 813 | Q33: 110 | S33: 110 | T33: 96 | V33: 106 | X33: 90 | Y33: 108 | AA33: 100 | AB33: 92 | AC33: 101 | AD33: 110
B34: 6 | D34: GRZEGORSKA MARIOLA | E34: PZU II | F34: 99.2 | G34: 20 | I34: =SUM(L34:AO34)+(J34) -> 1984 | J34: 200 | L34: 118 | N34: 119 | P34: 787 | Q34: 83 | R34: 70 | T34: 61 | W34: 76 | X34: 80 | Y34: 31 | AA34: 96 | AB34: 83 | AC34: 94 | AD34: 86
B35: 7 | D35: SZORC OLA | E35: TP SA II | F35: 98 | G35: 1 | I35: =SUM(L35:AO35)+(J35) -> 98 | P35: 98
B36: 8 | D36: ROGALSKA AGATA | E36: PZU II | F36: 88 | G36: 5 | I36: =SUM(L36:AO36)+(J36) -> 440 | M36: 83 | N36: 87 | P36: 270
I45: 3558
I46: 3122
I47: 3033
I48: =SUBTOTAL(9,I45:I47) -> 9713
I49: 1984
I50: 440
I51: =SUBTOTAL(9,I45:I50) -> 12137

Sheet WALBD
A1: TERMINARZ AMATORSKIEJ LIGI BOWLINGOWEJ WALBD
N2: Tabela Bergera dla 12 drużyn © by Wojtek Ulatowski
A3: Data | B3: Godzina | C3: Gospodarz | D3: Gość | E3: Punkty | H3: Pins
A4: RUNDA PODSTAWOWA | O4: I runda | S4: II runda
A5: 1 KOLEJKA
A6: 31.05.2012 | B6: 19.30 | C6: TP SA II | D6: AVATAR | E6: 2 | F6: : | G6: 0 | H6: 1212 | I6: : | J6: 1196 | N6: 1 | O6: TP SA | P6: * | Q6: AVATAR | R6: 67 | S6: AVATAR | U6: TP SA
A7: 31.05.2012 | B7: 19.30 | C7: WIM II | D7: ASY | E7: 0 | F7: : | G7: 2 | H7: 1159 | I7: : | J7: 1222 | N7: 2 | O7: WIM II | P7: * | Q7: ASY | R7: 68 | S7: ASY | T7: * | U7: WIM II
A8: 31.05.2012 | B8: 17.30 | C8: MAZUR | D8: ZAJĄCE | E8: 2 | F8: : | G8: 0 | H8: 1102 | I8: : | J8: 962 | N8: 3 | O8: MAZUR | P8: * | Q8: ZAJĄCE | R8: 69 | S8: ZAJĄCE | T8: * | U8: MAZUR
A9: 31.05.2012 | C9: WARMIG II | D9: WIM I | E9: DO USTALENIA TERMIN | N9: 4 | O9: WARMIG II | P9: * | Q9: WIMI I | R9: 70 | S9: WIMI I | T9: * | U9: WARMIG II
A10: 19.06.2012 | B10: 18.30 | C10: PZU I | D10: ORANGE | E10: 2 | F10: : | G10: 0 | H10: 1302 | I10: : | J10: 1133 | N10: 5 | O10: PZU I | P10: * | Q10: ORANGE | R10: 71 | S10: ORANGE | T10: * | U10: PZU I
C11: FC ELKE | D11: MUFINKI | F11: : | I11: : | N11: 6 | O11: FC ELKE | P11: * | Q11: MUFINKI | R11: 72 | S11: MUFINKI | T11: * | U11: FC ELKE
A12: 2 KOLEJKA
A13: 31.05.2012 | B13: 19.30 | C13: AVATAR | D13: MUFINKI | E13: DO USTALENIA TERMIN | N13: 7 | O13: AVATAR | P13: * | Q13: MUFINKI | R13: 73 | S13: MUFINKI | U13: AVATAR
A14: 31.05.2012 | B14: 18.00 | C14: WIM I | D14: PZU I | E14: 0 | F14: : | G14: 2 | H14: 1216 | I14: : | J14: 1221 | N14: 8 | O14: ORANGE | P14: * | Q14: FC ELKE | R14: 74 | S14: FC ELKE | T14: * | U14: ORANGE
A15: 31.05.2012 | B15: 18.00 | C15: ZAJĄCE | D15: WARMIG II | E15: DO USTALENIA TERMIN | N15: 9 | O15: WIMI I | P15: * | Q15: PZU I | R15: 75 | S15: PZU I | T15: * | U15: WIMI I
A16: 31.05.2012 | B16: 17.30 | C16: ASY | D16: MAZUR | E16: 0 | F16: : | G16: 2 | H16: 1056 | I16: : | J16: 1162 | N16: 10 | O16: ZAJĄCE | P16: * | Q16: WARMIG II | R16: 76 | S16: WARMIG II | T16: * | U16: ZAJĄCE
A17: 18.06.2012 | B17: 18.00 | C17: TP SA II | D17: WIM II | E17: 2 | F17: : | G17: 0 | H17: 1274 | I17: : | J17: 1043 | N17: 11 | O17: ASY | P17: * | Q17: MAZUR | R17: 77 | S17: MAZUR | T17: * | U17: ASY
C18: ORANGE | D18: TOMI | F18: : | I18: : | N18: 12 | O18: TP SA | P18: * | Q18: WIM II | R18: 78 | S18: WIM II | T18: * | U18: TP SA
A19: 3 KOLEJKA
A20: 28.06.2012 | B20: 19.30 | C20: WIM II | D20: AVATAR | F20: : | I20: : | N20: 13 | O20: WIM II | P20: * | Q20: AVATAR | R20: 79 | S20: AVATAR | U20: WIM II
A21: 28.06.2012 | B21: 17.30 | C21: MAZUR | D21: TP SA II | F21: : | I21: : | N21: 14 | O21: MAZUR | P21: * | Q21: TP SA | R21: 80 | S21: TP SA | T21: * | U21: MAZUR
A22: 28.06.2012 | B22: 18.00 | C22: WARMIG II | D22: ASY | F22: : | I22: : | N22: 15 | O22: WARMIG II | P22: * | Q22: ASY | R22: 81 | S22: ASY | T22: * | U22: WARMIG II
A23: 28.06.2012 | B23: 18.00 | C23: PZU I | D23: ZAJĄCE | F23: : | I23: : | N23: 16 | O23: PZU I | P23: * | Q23: ZAJĄCE | R23: 82 | S23: ZAJĄCE | T23: * | U23: PZU I
A24: 28.06.2012 | B24: 18.00 | C24: FC ELKE | D24: WIM I | F24: : | I24: : | N24: 17 | O24: FC ELKE | P24: * | Q24: WIMI I | R24: 83 | S24: WIMI I | T24: * | U24: FC ELKE
A25: 28.06.2012 | B25: 17.30 | C25: MUFINKI | D25: ORANGE | F25: : | I25: : | N25: 18 | O25: MUFINKI | P25: * | Q25: ORANGE | R25: 84 | S25: ORANGE | T25: * | U25: MUFINKI
A26: 4 KOLEJKA
C27: AVATAR | D27: ORANGE | N27: 19 | O27: AVATAR | P27: * | Q27: ORANGE | R27: 85 | S27: ORANGE | U27: AVATAR
C28: WIM I | D28: MUFINKI | F28: : | N28: 20 | O28: WIMI I | P28: * | Q28: MUFINKI | R28: 86 | S28: MUFINKI | T28: * | U28: WIMI I
C29: ZAJĄCE | D29: FC ELKE | F29: : | I29: : | N29: 21 | O29: ZAJĄCE | P29: * | Q29: FC ELKE | R29: 87 | S29: FC ELKE | T29: * | U29: ZAJĄCE
C30: ASY | D30: PZU I | F30: : | N30: 22 | O30: ASY | P30: * | Q30: PZU I | R30: 88 | S30: PZU I | T30: * | U30: ASY
C31: TP SA II | D31: WARMIG II | F31: : | N31: 23 | O31: TP SA | P31: * | Q31: WARMIG II | R31: 89 | S31: WARMIG II | T31: * | U31: TP SA
C32: WIM II | D32: MAZUR | N32: 24 | O32: WIM II | P32: * | Q32: MAZUR | R32: 90 | S32: MAZUR | T32: * | U32: WIM II
A33: 5 KOLEJKA
C34: MAZUR | D34: AVATAR | F34: : | I34: : | N34: 25 | O34: MAZUR | P34: * | Q34: AVATAR | R34: 91 | S34: AVATAR | U34: MAZUR
C35: WARMIG II | D35: WIM II | F35: : | I35: : | N35: 26 | O35: WARMIG II | P35: * | Q35: WIM II | R35: 92 | S35: WIM II | T35: * | U35: WARMIG II
C36: PZU I | D36: TP SA II | F36: : | I36: : | N36: 27 | O36: PZU I | P36: * | Q36: TP SA | R36: 93 | S36: TP SA | T36: * | U36: PZU I
C37: FC ELKE | D37: ASY | F37: : | I37: : | N37: 28 | O37: FC ELKE | P37: * | Q37: ASY | R37: 94 | S37: ASY | T37: * | U37: FC ELKE
C38: MUFINKI | D38: ZAJĄCE | F38: : | I38: : | N38: 29 | O38: MUFINKI | P38: * | Q38: ZAJĄCE | R38: 95 | S38: ZAJĄCE | T38: * | U38: MUFINKI
C39: ORANGE | D39: WIM I | F39: : | I39: : | N39: 30 | O39: ORANGE | P39: * | Q39: WIMI I | R39: 96 | S39: WIMI I | T39: * | U39: ORANGE
A40: 7 KOLEJKA
C41: AVATAR | D41: WIM I | N41: 31 | O41: AVATAR | P41: * | Q41: WIMI I | R41: 97 | S41: WIMI I | U41: AVATAR
C42: ZAJĄCE | D42: ORANGE | N42: 32 | O42: ZAJĄCE | P42: * | Q42: ORANGE | R42: 98 | S42: ORANGE | T42: * | U42: ZAJĄCE
C43: ASY | D43: MUFINKI | N43: 33 | O43: ASY | P43: * | Q43: MUFINKI | R43: 99 | S43: MUFINKI | T43: * | U43: ASY
C44: TP SA II | D44: FC ELKE | N44: 34 | O44: TP SA | P44: * | Q44: FC ELKE | R44: 100 | S44: FC ELKE | T44: * | U44: TP SA
C45: WIM II | D45: PZU I | N45: 35 | O45: WIM II | P45: * | Q45: PZU I | R45: 101 | S45: PZU I | T45: * | U45: WIM II
C46: MAZUR | D46: WARMIG II | N46: 36 | O46: MAZUR | P46: * | Q46: WARMIG II | R46: 102 | S46: WARMIG II | T46: * | U46: MAZUR
A47: 8 KOLEJKA
C48: WARMIG II | D48: AVATAR | N48: 37 | O48: WARMIG II | P48: * | Q48: AVATAR | R48: 103 | S48: AVATAR | U48: WARMIG II
C49: PZU I | D49: MAZUR | N49: 38 | O49: PZU I | P49: * | Q49: MAZUR | R49: 104 | S49: MAZUR | T49: * | U49: PZU I
C50: FC ELKE | D50: WIM II | N50: 39 | O50: FC ELKE | P50: * | Q50: WIM II | R50: 105 | S50: WIM II | T50: * | U50: FC ELKE
C51: MUFINKI | D51: TP SA II | N51: 40 | O51: MUFINKI | P51: * | Q51: TP SA | R51: 106 | S51: TP SA | T51: * | U51: MUFINKI
C52: ORANGE | D52: ASY | N52: 41 | O52: ORANGE | P52: * | Q52: ASY | R52: 107 | S52: ASY | T52: * | U52: ORANGE
C53: WIM II | D53: ZAJĄCE | N53: 42 | O53: WIMI I | P53: * | Q53: ZAJĄCE | R53: 108 | S53: ZAJĄCE | T53: * | U53: WIMI I
A54: 9 KOLEJKA
C55: AVATAR | D55: ZAJĄCE | N55: 43 | O55: AVATAR | P55: * | Q55: ZAJĄCE | R55: 109 | S55: ZAJĄCE | U55: AVATAR
C56: ASY | D56: WIM II | N56: 44 | O56: ASY | P56: * | Q56: WIMI I | R56: 110 | S56: WIMI I | T56: * | U56: ASY
C57: TP SA II | D57: ORANGE | N57: 45 | O57: TP SA | P57: * | Q57: ORANGE | R57: 111 | S57: ORANGE | T57: * | U57: TP SA
C58: WIM II | D58: MUFINKI | N58: 46 | O58: WIM II | P58: * | Q58: MUFINKI | R58: 112 | S58: MUFINKI | T58: * | U58: WIM II
C59: MAZUR | D59: FC ELKE | N59: 47 | O59: MAZUR | P59: * | Q59: FC ELKE | R59: 113 | S59: FC ELKE | T59: * | U59: MAZUR
C60: WARMIG II | D60: PZU I | N60: 48 | O60: WARMIG II | P60: * | Q60: PZU I | R60: 114 | S60: PZU I | T60: * | U60: WARMIG II
A61: 10 KOLEJKA
C62: PZU I | D62: AVATAR | N62: 49 | O62: PZU I | P62: * | Q62: AVATAR | R62: 115 | S62: AVATAR | U62: PZU I
C63: FC ELKE | D63: WARMIG II | E63: WOLNE | N63: 50 | O63: FC ELKE | P63: * | Q63: WARMIG II | R63: 116 | S63: WARMIG II | T63: * | U63: FC ELKE
C64: MUFINKI | D64: MAZUR | N64: 51 | O64: MUFINKI | P64: * | Q64: MAZUR | R64: 117 | S64: MAZUR | T64: * | U64: MUFINKI
C65: ORANGE | D65: WIM II | N65: 52 | O65: ORANGE | P65: * | Q65: WIM II | R65: 118 | S65: WIM II | T65: * | U65: ORANGE
C66: WIM II | D66: TP SA II | N66: 53 | O66: WIMI I | P66: * | Q66: TP SA | R66: 119 | S66: TP SA | T66: * | U66: WIMI I
C67: ZAJĄCE | D67: ASY | N67: 54 | O67: ZAJĄCE | P67: * | Q67: ASY | R67: 120 | S67: ASY | T67: * | U67: ZAJĄCE
A68: 11 KOLEJKA
C69: AVATAR | D69: ASY | N69: 55 | O69: AVATAR | P69: * | Q69: ASY | R69: 121 | S69: ASY | U69: AVATAR
C70: TP SA II | D70: ZAJĄCE | N70: 56 | O70: TP SA | P70: * | Q70: ZAJĄCE | R70: 122 | S70: ZAJĄCE | T70: * | U70: TP SA
C71: WIM II | D71: WIM II | N71: 57 | O71: WIM II | P71: * | Q71: WIMI I | R71: 123 | S71: WIMI I | T71: * | U71: WIM II
C72: MAZUR | D72: ORANGE | N72: 58 | O72: MAZUR | P72: * | Q72: ORANGE | R72: 124 | S72: ORANGE | T72: * | U72: MAZUR
C73: WARMIG II | D73: MUFINKI | N73: 59 | O73: WARMIG II | P73: * | Q73: MUFINKI | R73: 125 | S73: MUFINKI | T73: * | U73: WARMIG II
C74: PZU I | D74: FC ELKE | E74: WOLNE | N74: 60 | O74: PZU I | P74: * | Q74: FC ELKE | R74: 126 | S74: FC ELKE | T74: * | U74: PZU I
A75: 12 KOLEJKA
C76: FC ELKE | D76: AVATAR | E76: WOLNE | N76: 61 | O76: FC ELKE | P76: * | Q76: AVATAR | R76: 127 | S76: AVATAR | U76: FC ELKE
C77: MUFINKI | D77: PZU I | N77: 62 | O77: MUFINKI | P77: * | Q77: PZU I | R77: 128 | S77: PZU I | T77: * | U77: MUFINKI
C78: ORANGE | D78: WARMIG II | N78: 63 | O78: ORANGE | P78: * | Q78: WARMIG II | R78: 129 | S78: WARMIG II | T78: * | U78: ORANGE
C79: WIM II | D79: MAZUR | N79: 64 | O79: WIMI I | P79: * | Q79: MAZUR | R79: 130 | S79: MAZUR | T79: * | U79: WIMI I
C80: ZAJĄCE | D80: WIM II | N80: 65 | O80: ZAJĄCE | P80: * | Q80: WIM II | R80: 131 | S80: WIM II | T80: * | U80: ZAJĄCE
C81: ASY | D81: TP SA II | N81: 66 | O81: ASY | P81: * | Q81: TP SA | R81: 132 | S81: TP SA | T81: * | U81: ASY

Sheet MECZE
C1: DUET OLB - OLSZTYŃSKA LIGA BOWLINGOWA
C2: TABELA
C3: 1 | D3: SĄSIEDZI | F3: 12 | G3: : | I3: 2 | J3: 8672 | K3: : | L3: 8010 | M3: =SUM(J3-L3) -> 662
C4: 2 | D4: T&M | F4: 12 | G4: : | I4: 2 | J4: 9119 | K4: : | L4: 8002 | M4: 1117
D5: BLACK&WHITE | F5: 10 | G5: : | I5: 6 | J5: 9785 | K5: : | L5: 9247 | M5: 538
C6: 3 | D6: TRZYSTU | F6: 8 | G6: : | I6: 6 | J6: 8773 | K6: : | L6: 7547 | M6: 1226
C7: 6 | D7: ORANGE3 | F7: 8 | G7: : | I7: 10 | J7: 10070 | K7: : | L7: 10316 | M7: -246
C8: 5 | D8: MUFINKI | F8: 6 | G8: : | I8: 12 | J8: 9291 | K8: : | L8: 9966 | M8: -675
C9: 8 | D9: FART | F9: 4 | G9: : | I9: 12 | J9: 9047 | K9: : | L9: 9454 | M9: -407
C10: 7 | D10: HAPPINESS | F10: 2 | G10: : | I10: 12 | J10: 6586 | K10: : | L10: 7589 | M10: -1003
B12: lp | C12: SĄSIEDZI | H12: lp | I12: ORANGE3
B13: 1 | C13: 2 | D13: 0 | E13: 1146 | F13: 1102 | H13: 1 | I13: 0 | J13: 2 | K13: 1102 | L13: 1146
B14: 2 | H14: 2 | I14: 0 | J14: 2 | K14: 959 | L14: 1051
B15: 3 | C15: 2 | D15: 0 | E15: 1327 | F15: 1264 | H15: 3 | I15: 0 | J15: 2 | K15: 1027 | L15: 1292
B16: 4 | C16: 2 | D16: 0 | E16: 1266 | F16: 1152 | H16: 4 | I16: 0 | J16: 2 | K16: 1015 | L16: 1021
B17: 5 | C17: 2 | D17: 0 | E17: 1077 | F17: 972 | H17: 5 | I17: 2 | J17: 0 | K17: 1276 | L17: 1267
B18: 6 | C18: 2 | D18: 0 | E18: 1278 | F18: 982 | H18: 6 | I18: 0 | J18: 2 | K18: 993 | L18: 1165
B19: 7 | H19: 7 | I19: 2 | J19: 0 | K19: 1329 | L19: 1313
B20: 8 | C20: 0 | D20: 2 | E20: 1037 | F20: 1183 | H20: 8 | I20: 2 | J20: 0 | K20: 1183 | L20: 1037
B21: 9 | C21: 2 | D21: 0 | E21: 1541 | F21: 1355 | H21: 9 | I21: 2 | J21: 0 | K21: 1186 | L21: 1024
B22: 10 | H22: 10
B23: 11 | H23: 11
B24: 12 | H24: 12
B25: 13 | H25: 13
B26: 14 | H26: 14
C27: =SUM(C13:C26) -> 12 | D27: =SUM(D13:D26) -> 2 | E27: =SUM(E13:E26) -> 8672 | F27: =SUM(F13:F26) -> 8010 | I27: =SUM(I13:I26) -> 8 | J27: =SUM(J13:J26) -> 10 | K27: =SUM(K13:K26) -> 10070 | L27: =SUM(L13:L26) -> 10316
E28: =SUM(E27-F27) -> 662 | K28: =SUM(K27-L27) -> -246
B29: lp | C29: MUFINKI | H29: lp | I29: FART
B30: 1 | C30: 0 | D30: 2 | E30: 1241 | F30: 1080 | H30: 1
B31: 2 | C31: 2 | D31: 0 | E31: 1195 | F31: 1021 | H31: 2 | I31: 0 | J31: 2 | K31: 1021 | L31: 1195
B32: 3 | C32: 2 | D32: 0 | E32: 1016 | F32: 976 | H32: 3 | I32: 0 | J32: 2 | K32: 1039 | L32: 1052
B33: 4 | C33: 2 | D33: 0 | E33: 1021 | F33: 1015 | H33: 4 | I33: 0 | J33: 2 | K33: 1152 | L33: 1266
B34: 5 | C34: 0 | D34: 2 | E34: 924 | F34: 1124 | H34: 5 | I34: 0 | J34: 2 | K34: 1246 | L34: 1422
B35: 6 | C35: 0 | D35: 2 | E35: 982 | F35: 1278 | H35: 6 | I35: 0 | J35: 2 | K35: 1076 | L35: 1198
B36: 7 | C36: 0 | D36: 2 | E36: 859 | F36: 1230 | H36: 7 | I36: 0 | J36: 2 | K36: 1313 | L36: 1329
B37: 8 | H37: 8 | I37: 2 | J37: 0 | K37: 1123 | L37: 952
B38: 9 | C38: 0 | D38: 2 | E38: 1040 | F38: 1077 | H38: 9 | I38: 2 | J38: 0 | K38: 1077 | L38: 1040
B39: 10 | H39: 10
B40: 11 | H40: 11
B41: 12 | H41: 12
B42: 13 | H42: 13
B43: 14 | C43: 0 | D43: 2 | E43: 1013 | F43: 1165 | H43: 14
C44: =SUM(C30:C43) -> 6 | D44: =SUM(D30:D43) -> 12 | E44: =SUM(E30:E43) -> 9291 | F44: =SUM(F30:F43) -> 9966 | I44: =SUM(I30:I43) -> 4 | J44: =SUM(J30:J43) -> 12 | K44: =SUM(K30:K43) -> 9047 | L44: =SUM(L30:L43) -> 9454
E45: =SUM(E44-F44) -> -675 | K45: =SUM(K44-L44) -> -407
B46: lp | C46: TRZYSTU | H46: lp | I46: BLACK&WHITE
B47: 1 | C47: 0 | D47: 2 | E47: 1139 | F47: 1282 | H47: 1 | I47: 2 | J47: 0 | K47: 1241 | L47: 1080
B48: 2 | C48: 0 | D48: 2 | E48: 1172 | F48: 1292 | H48: 2 | I48: 2 | J48: 0 | K48: 1292 | L48: 1172
B49: 3 | C49: 2 | D49: 0 | E49: 1052 | F49: 1039 | H49: 3 | I49: 0 | J49: 2 | K49: 1264 | L49: 1327
B50: 4 | C50: 2 | D50: 0 | E50: 1068 | F50: 831 | H50: 4 | I50: 0 | J50: 2 | K50: 1177 | L50: 1373
B51: 5 | C51: 2 | D51: 0 | E51: 1124 | F51: 924 | H51: 5 | I51: 0 | J51: 2 | K51: 1267 | L51: 1276
B52: 6 | C52: 2 | D52: 0 | E52: 1165 | F52: 993 | H52: 6 | I52: 2 | J52: 0 | K52: 1198 | L52: 1076
B53: 7 | H53: 7 | I53: 2 | J53: 0 | K53: 1160 | L53: 780
B54: 8 | H54: 8
B55: 9 | C55: 0 | D55: 2 | E55: 1163 | F55: 1186 | H55: 9 | I55: 2 | J55: 0 | K55: 1186 | L55: 1163
B56: 10 | H56: 10
B57: 11 | H57: 11
B58: 12 | H58: 12
B59: 13 | H59: 13
B60: 14 | H60: 14
C61: =SUM(C47:C60) -> 8 | D61: =SUM(D47:D60) -> 6 | E61: =SUM(E47:E60) -> 7883 | F61: =SUM(F47:F60) -> 7547 | I61: =SUM(I47:I60) -> 10 | J61: =SUM(J47:J60) -> 6 | K61: =SUM(K47:K60) -> 9785 | L61: =SUM(L47:L60) -> 9247
E62: =SUM(E61-F61) -> 336 | K62: =SUM(K61-L61) -> 538
B63: lp | C63: T&M | H63: lp | I63: HAPPINESS
B64: 1 | C64: 2 | D64: 0 | E64: 1282 | F64: 1139 | H64: 1
B65: 2 | H65: 2 | I65: 2 | J65: 0 | K65: 1051 | L65: 959
B66: 3 | C66: 2 | D66: 0 | E66: 1292 | F66: 1027 | H66: 3 | I66: 0 | J66: 2 | K66: 976 | L66: 1016
B67: 4 | C67: 2 | D67: 0 | E67: 1373 | F67: 1177 | H67: 4 | I67: 0 | J67: 2 | K67: 831 | L67: 1068
B68: 5 | C68: 2 | D68: 0 | E68: 1422 | F68: 1246 | H68: 5 | I68: 0 | J68: 2 | K68: 972 | L68: 1077
B69: 6 | H69: 6
B70: 7 | C70: 2 | D70: 0 | E70: 1230 | F70: 859 | H70: 7 | I70: 0 | J70: 2 | K70: 780 | L70: 1160
B71: 8 | H71: 8 | I71: 0 | J71: 2 | K71: 952 | L71: 1123
B72: 9 | C72: 0 | D72: 2 | E72: 1355 | F72: 1541 | H72: 9 | I72: 0 | J72: 2 | K72: 1024 | L72: 1186
B73: 10 | H73: 10
B74: 11 | H74: 11
B75: 12 | H75: 12
B76: 13 | H76: 13
B77: 14 | C77: 2 | D77: 0 | E77: 1165 | F77: 1013 | H77: 14
C78: =SUM(C64:C77) -> 12 | D78: =SUM(D64:D77) -> 2 | E78: =SUM(E64:E77) -> 9119 | F78: =SUM(F64:F77) -> 8002 | I78: =SUM(I64:I77) -> 2 | J78: =SUM(J64:J77) -> 12 | K78: =SUM(K64:K77) -> 6586 | L78: =SUM(L64:L77) -> 7589
E79: =SUM(E78-F78) -> 1117 | K79: =SUM(K78-L78) -> -1003
